[Event "Chinese League Division-A 2024"]
[Site "Fuling Chongqing"]
[Date "2024.07.04"]
[Round "8.16"]
[White "Xu, Yi"]
[Black "Bu, Xiangzhi"]
[Result "1/2-1/2"]
[ECO "B42"]
[WhiteElo "2496"]
[BlackElo "2689"]
[Annotator "TA"]
[PlyCount "80"]
[EventDate "2024.06.28"]
[EventType "team-tourn"]
[EventCountry "CHN"]
[SourceTitle "playchess.com"]
[Source "ChessBase"]
[SourceQuality "1"]
[TimeControl "40/5400+30:1800+30"]

{[%evp 12,80,29,27,41,34,47,33,37,27,35,29,41,54,47,16,11,13,16,12,25,29,22,12,22,22,18,17,30,25,57,38,51,14,23,8,14,0,0,0,19,16,14,0,0,0,0,-6,0,0,10,16,10,10,19,0,0,0,0,0,0,-7,10,-2,-6,-1,0,-3,0,-5,-4]} 1. e4 {[%emt 0:00:03]} c5 {[%emt 0:00:08]} 2. Nf3 {[%emt 0:00:05]} e6 {[%emt 0:00:04]} 3. d4 {[%emt 0:00:08]} cxd4 {[%emt 0:00:04]} 4. Nxd4 {[%emt 0:00:04]} a6 {[%emt 0:00:06]} 5. Bd3 {[%emt 0:01:31]} Bc5 {[%emt 0:00:08]} 6. Nb3 {[%emt 0:00:06]} Ba7 {[%emt 0:00:04]} 7. Qe2 {[%emt 0:00:05]} Ne7 {[%emt 0:00:34]} 8. Be3 {[%emt 0:01:05]} O-O {[%emt 0:00:17]} 9. O-O {[%emt 0:01:36]} Nbc6 {[%emt 0:00:39] White is slightly better.} 10. Bxa7 {[%emt 0:04:33]} Rxa7 {[%emt 0:00:29]} 11. c4 {[%emt 0:00:37]} d5 {[%emt 0:00:45]} 12. exd5 {[%emt 0:18:20]} exd5 {[%emt 0:00:25]} 13. Nc3 {[%emt 0:01:31] Threatening cxd5.} (13. Rd1 $5) 13... dxc4 {[%emt 0:16:53]} 14. Bxc4 {[%emt 0:00:06]} b5 {[%emt 0:00:04]} 15. Rad1 {[%emt 0:05:30]} Qc7 {[%emt 0:24:10]} 16. Bd3 {[%emt 0:03:17]} Ne5 {[%emt 0:02:37]} 17. Be4 {[%emt 0:04:24]} Ng4 {[%emt 0:16:25][%csl Gg4][%cal Rc7h2] [#]} 18. g3 {[%emt 0:00:48] Active counter play!} Nf6 {[%emt 0:00:14]} 19. Bf3 {[%emt 0:01:13]} Be6 {[%emt 0:02:19] Strongly threatening ...Bc4.} 20. Rfe1 {[%emt 0:02:19]} Bc4 {[%emt 0:02:41]} 21. Qe3 {[%emt 0:05:24]} h6 {[%emt 0:00:28]} 22. Qe5 {[%emt 0:19:46]} (22. Nc5 {feels hotter.} Nf5 23. Qe5 b4 24. b3) 22... Rc8 {[%emt 0:08:04]} 23. Qxc7 {[%emt 0:02:09]} Raxc7 {[%emt 0:00:09] The position is equal.} 24. Na5 {[%emt 0:00:31]} Be6 {[%emt 0:03:32]} 25. a3 {[%emt 0:01:23]} b4 {[%emt 0:02:35]} 26. axb4 {[%emt 0:01:14]} Rb8 {[%emt 0:00:04]} 27. Rd4 {[%emt 0:06:17]} Nf5 {[%emt 0:01:07]} 28. Rd2 {[%emt 0:00:06]} Rxb4 {[%emt 0:00:20]} 29. Nc6 {[%emt 0:00:28]} Rb6 {[%emt 0:07:01]} 30. Ne5 {[%emt 0:00:05]} Nd6 {[%emt 0:01:35]} 31. Na4 {[%emt 0:03:13]} Rb4 {[%emt 0:00:07]} 32. Rxd6 {[%emt 0:00:44]} Rxa4 {[%emt 0:00:03]} 33. Nc6 {[%emt 0:01:52][%cal Be5c6,Bc6e7,Be7d5,Bd5b4,Bb4a6,Ba6c5][%mdl 32]} Rd7 {[%emt 0:00:39]} 34. Rxd7 {[%emt 0:02:09]} Bxd7 {[%emt 0:00:18]} 35. Ne7+ {[%emt 0:03:24]} Kf8 {[%emt 0:00:20]} 36. Nd5 {[%emt 0:00:49] Inhibits Rb4.} Ra2 {[%emt 0:03:46]} 37. Nb4 {[%emt 0:01:48]} Rxb2 {[%emt 0:01:18]} 38. Nxa6 {[%emt 0:00:06]} Bg4 {[%emt 0:04:22]} 39. Bg2 {[%emt 0:01:06]} Bc8 {[%emt 0:01:05]} 40. Nc5 {[%emt 0:00:00]} g5 {[%emt 0:00:00] Weighted Error Value: White=0.06 (flawless) /Black=0.07 (flawless) .  Inaccurate:     	White=2     	Black=1      OK:         	White=16    	Black=12     Best:        	White=1     	Black=2} 1/2-1/2

[Event "Chinese League Division-A 2024"]
[Site "Fuling Chongqing"]
[Date "2024.07.04"]
[Round "8.17"]
[White "Zeng, Chongsheng"]
[Black "Lou, Yiping"]
[Result "1/2-1/2"]
[ECO "E48"]
[WhiteElo "2578"]
[BlackElo "2442"]
[Annotator "TA"]
[PlyCount "59"]
[EventDate "2024.06.28"]
[EventType "team-tourn"]
[EventCountry "CHN"]
[SourceTitle "playchess.com"]
[Source "ChessBase"]
[SourceQuality "1"]
[TimeControl "40/5400+30:1800+30"]

{[%evp 15,59,-15,-3,0,-2,-14,0,-33,18,-51,-44,-76,-75,-62,-76,-75,-77,-75,-75,-112,-76,-125,-39,-39,10,0,23,48,48,45,63,0,0,0,0,0,0,0,0,0,0,0,0,0,0,0]} 1. d4 {[%emt 0:00:03]} Nf6 {[%emt 0:00:05]} 2. c4 {[%emt 0:02:09]} e6 {[%emt 0:00:12]} 3. Nc3 {[%emt 0:00:35]} Bb4 {[%emt 0:00:15]} 4. e3 {[%emt 0:00:10]} O-O {[%emt 0:00:19]} 5. Bd3 {[%emt 0:00:09]} d5 {[%emt 0:00:19]} 6. cxd5 {[%emt 0:00:18]} exd5 {[%emt 0:00:10]} 7. Nge2 {[%emt 0:00:06]} Re8 {[%emt 0:04:43]} 8. O-O {[%emt 0:00:22]} Bd6 {[%emt 0:02:08]} 9. Qc2 {[%emt 0:01:09]} a6 {[%emt 0:01:21]} 10. Bd2 {[%emt 0:00:25]} Nbd7 {[%emt 0:01:52]} 11. Rad1 {[%emt 0:06:06]} b6 {[%emt 0:09:44]} (11... c5 $15) 12. f3 {[%emt 0:15:51]} ({White should try} 12. Nxd5 $11 Nxd5 13. Qc6 Nxe3 (13... Qh4 14. g3 $14) 14. fxe3) 12... c5 $15 {[%emt 0:03:26]} 13. g4 {[%emt 0:00:29]} c4 {[%emt 0:06:02]} 14. Bf5 {[%emt 0:00:15]} g6 {[%emt 0:02:48]} 15. Bxd7 {[%emt 0:03:51]} Bxd7 {[%emt 0:00:34]} 16. Nf4 {[%emt 0:02:12]} Bc6 {[%emt 0:03:40]} 17. Nce2 {[%emt 0:03:01]} Nd7 {[%emt 0:04:41]} 18. Ng3 {[%emt 0:04:23]} (18. Nc3 $142) 18... Nf8 {[%emt 0:12:11]} (18... b5 $17 19. Bc1 Qc7) 19. e4 {[%emt 0:09:04]} dxe4 {[%emt 0:01:22]} (19... Rc8 $15) 20. Nxe4 {[%emt 0:02:47]} Rxe4 {[%emt 0:11:12]} 21. fxe4 {[%emt 0:00:13] h3 would now be deadly.} Qh4 {[%emt 0:00:07][%cal Og6g5]} 22. d5 $1 {[%emt 0:05:04]} Bd7 {[%emt 0:02:08] This pair of bishops is nice.} 23. h3 {[%emt 0:18:49]} (23. Qxc4 $2 {loses.} g5 (23... Bb5 24. Qc3 $11) 24. Qc3 gxf4 25. Bxf4 Bc5+ (25... Qxg4+ 26. Kh1 $11) 26. Kh1 Ng6 $19) (23. Qc3 $14) 23... Bxg4 $11 {[%emt 0:08:50] The position is equal.} 24. hxg4 {[%emt 0:01:09]} Qg3+ {[%emt 0:00:18]} 25. Kh1 {[%emt 0:00:33] [#] Strongly threatening Qc3.} Qh4+ $1 {[%emt 0:00:07]} 26. Kg2 {[%emt 0:03:42] Be1 is the strong threat.} Qxg4+ {[%emt 0:00:05]} 27. Kh1 {[%emt 0:04:03]} Qh4+ $1 {[%emt 0:00:05]} 28. Kg2 {[%emt 0:00:03] Hoping for Qc3.} Qg4+ {[%emt 0:00:04]} 29. Kh1 {[%emt 0:00:04] [#] And now Qc3 would win.} Qh4+ $1 {[%emt 0:00:09]} 30. Kg2 {[%emt 0:00:05] Weighted Error Value: White=0.16 (very precise) /Black=0.12 (very precise) .  Mistake:       	White=3     	Black=3      Inaccurate:     	White=3     	Black=1      OK:         	White=5     	Black=5      Best:        	White=1     	Black=3      Strong:       	White=1     	Black=3} 1/2-1/2

[Event "Chinese League Division-A 2024"]
[Site "Fuling Chongqing"]
[Date "2024.07.04"]
[Round "8.18"]
[White "Meng, Yihan"]
[Black "Liu, Yan"]
[Result "1/2-1/2"]
[ECO "B51"]
[WhiteElo "2268"]
[BlackElo "2573"]
[Annotator "TA"]
[PlyCount "80"]
[EventDate "2024.06.28"]
[EventType "team-tourn"]
[EventCountry "CHN"]
[SourceTitle "playchess.com"]
[Source "ChessBase"]
[SourceQuality "1"]
[TimeControl "40/5400+30:1800+30"]

{[%evp 9,80,6,12,5,39,35,41,41,45,48,43,29,38,0,0,18,15,0,31,33,31,14,22,26,26,5,14,2,3,5,17,0,2,0,0,0,0,-4,0,-2,-8,-3,-4,-10,0,0,0,-1,-1,-1,0,0,0,-14,-8,-8,-3,-3,0,0,0,0,-6,-6,0,0,0,0,0,0,0,0,0]} 1. e4 {[%emt 0:00:03]} c5 {[%emt 0:00:35]} 2. Nf3 {[%emt 0:00:06]} d6 {[%emt 0:00:14]} 3. Bb5+ {[%emt 0:00:05]} Nd7 {[%emt 0:00:27]} 4. a4 {[%emt 0:00:35][%cal Ba2a4,Ba4a5][%mdl 32]} a6 {[%emt 0:01:55]} 5. Be2 {[%emt 0:00:17]} Ngf6 {[%emt 0:00:41]} 6. Nc3 {[%emt 0:00:08]} g6 {[%emt 0:03:16]} 7. a5 {[%emt 0:00:46]} Bg7 {[%emt 0:01:54]} 8. O-O {[%emt 0:00:13] White is slightly better.} O-O {[%emt 0:00:33]} 9. d3 {[%emt 0:01:10]} b5 {[%emt 0:11:45]} 10. axb6 {[%emt 0:00:06]} Nxb6 {[%emt 0:02:50]} 11. e5 {[%emt 0:07:10]} Nfd5 {[%emt 0:19:06]} 12. Nxd5 {[%emt 0:00:41]} Nxd5 {[%emt 0:00:05]} 13. exd6 {[%emt 0:00:10]} Qxd6 {[%emt 0:00:42]} 14. Nd2 {[%emt 0:03:53]} Qc7 {[%emt 0:00:56]} 15. Bf3 {[%emt 0:07:09]} Bb7 {[%emt 0:00:15]} 16. Nc4 {[%emt 0:00:10] [#] And now Na5 would win.} a5 {[%emt 0:01:06]} 17. c3 {[%emt 0:23:16]} e6 {[%emt 0:18:39] The position is equal.} 18. Re1 {[%emt 0:08:16]} Ra6 {[%emt 0:06:08]} 19. Bg5 {[%emt 0:02:00]} Rfa8 {[%emt 0:01:46]} 20. Qd2 {[%emt 0:05:22]} a4 {[%emt 0:02:59]} 21. Ra3 {[%emt 0:08:44]} R8a7 {[%emt 0:04:20]} 22. Bh6 {[%emt 0:06:20]} Nb6 {[%emt 0:04:11] ...Nxc4 would now be deadly.} 23. Bf4 {[%emt 0:12:41]} Qd8 {[%emt 0:05:06]} 24. Qe2 {[%emt 0:01:43]} Bxf3 {[%emt 0:03:20]} 25. Qxf3 {[%emt 0:00:04]} Nxc4 {[%emt 0:05:33]} 26. dxc4 {[%emt 0:00:04]} h5 {[%emt 0:00:17]} 27. Rea1 {[%emt 0:02:02]} Qb6 {[%emt 0:01:46]} 28. Qe2 {[%emt 0:01:04]} Kh7 {[%emt 0:00:22][%cal Bg8h7,Bh7h6,Bh6g7][%mdl 32]} 29. h3 {[%emt 0:00:23]} Bh6 {[%emt 0:00:32]} 30. Bxh6 {[%emt 0:00:20]} Kxh6 {[%emt 0:00:03]} 31. Qc2 {[%emt 0:00:28]} Kg7 {[%emt 0:02:34]} 32. h4 {[%emt 0:01:32]} Qb8 {[%emt 0:00:17]} 33. g3 {[%emt 0:01:18]} Rb6 {[%emt 0:00:37]} 34. Rxa4 {[%emt 0:00:30]} Rxa4 {[%emt 0:00:07]} 35. Rxa4 {[%emt 0:00:39]} Rxb2 $11 {[%emt 0:00:05] KQR-KQR} 36. Qe4 {[%emt 0:00:05]} Qd6 {[%emt 0:01:39] [#] ...Qd1+ is the strong threat.} 37. Ra7 {[%emt 0:00:29]} Rb8 {[%emt 0:01:02]} 38. Qf3 {[%emt 0:00:40]} Rf8 {[%emt 0:00:08]} 39. Qe4 {[%emt 0:02:21]} Rc8 {[%emt 0:01:01]} 40. Qb7 {[%emt 0:00:00][%csl LRc8,LRf7]} Rf8 {[%emt 0:00:00] Weighted Error Value: White=0.04 (flawless) /Black=0.03 (flawless) .  Inaccurate:     	---       	Black=2      OK:         	White=16    	Black=14     Best:        	White=1     	---} 1/2-1/2

[Event "Chinese League Division-A 2024"]
[Site "Fuling Chongqing"]
[Date "2024.07.04"]
[Round "8.19"]
[White "Huang, Qian"]
[Black "Zhang, Xiaowen"]
[Result "1/2-1/2"]
[ECO "A07"]
[WhiteElo "2396"]
[BlackElo "2261"]
[Annotator "TA"]
[PlyCount "61"]
[EventDate "2024.06.28"]
[EventType "team-tourn"]
[EventCountry "CHN"]
[SourceTitle "playchess.com"]
[Source "ChessBase"]
[SourceQuality "1"]
[TimeControl "40/5400+30:1800+30"]

{[%evp 17,61,0,0,0,0,0,29,0,0,0,8,0,0,0,0,0,0,0,0,0,0,0,0,-2,0,0,19,18,18,15,18,16,8,9,8,8,13,3,5,0,0,0,0,0,0,0]} 1. Nf3 {[%emt 0:00:10]} Nf6 {[%emt 0:00:38]} 2. g3 {[%emt 0:00:55]} d5 {[%emt 0:02:02]} 3. Bg2 {[%emt 0:01:57]} g6 {[%emt 0:00:31]} 4. O-O {[%emt 0:01:51]} Bg7 {[%emt 0:00:06]} 5. d3 {[%emt 0:05:52]} O-O {[%emt 0:02:48]} 6. Nbd2 {[%emt 0:02:12]} Nc6 {[%emt 0:09:35]} 7. e4 {[%emt 0:08:52]} dxe4 {[%emt 0:02:11]} 8. dxe4 {[%emt 0:00:05]} e5 {[%emt 0:00:17]} 9. c3 {[%emt 0:06:30]} a5 {[%emt 0:03:10]} 10. Qc2 {[%emt 0:01:24]} Qe7 {[%emt 0:04:14]} 11. a4 {[%emt 0:01:40]} b6 {[%emt 0:02:48]} 12. b3 {[%emt 0:00:57] White has an edge.} Rd8 {[%emt 0:02:57] The position is equal.} 13. Ba3 {[%emt 0:00:52]} Qe8 {[%emt 0:00:19]} 14. Rfd1 {[%emt 0:00:28]} Ba6 {[%emt 0:03:39]} 15. Nf1 {[%emt 0:05:38]} Rxd1 16. Rxd1 Rd8 17. Ne3 Rxd1+ 18. Nxd1 Qd7 19. Ne1 {Repels Bd3} Bh6 20. Bf1 Bxf1 21. Kxf1 Qd2 22. Qxd2 {[%emt 0:00:00]} Bxd2 {[%emt 0:05:25]} 23. f3 {[%emt 0:00:00]} Nd7 {[%emt 0:07:46]} 24. Ke2 {[%emt 0:02:02]} Bxe1 25. Kxe1 $11 {[%mdl 4096] Endgame. KBN-KNN} f6 26. Ne3 {Nd5 is the strong threat.} Nd8 27. Nd5 Ne6 28. Ke2 Kf7 29. Kd3 c6 30. Ne3 Nec5+ 31. Kc2 {[%emt 0:01:07] Not much happened in this game.   Weighted Error Value: White=0.03 (flawless) /Black=0.03 (flawless) .  Inaccurate:     	White=1     	Black=1      OK:         	White=8     	Black=13} 1/2-1/2

[Event "Chinese League Division-A 2024"]
[Site "Fuling Chongqing"]
[Date "2024.07.04"]
[Round "8.20"]
[White "Ju, Wenjun"]
[Black "Wang, Chuqiao"]
[Result "1-0"]
[ECO "D35"]
[WhiteElo "2558"]
[BlackElo "2278"]
[Annotator "TA"]
[PlyCount "67"]
[EventDate "2024.06.28"]
[EventType "team-tourn"]
[EventCountry "CHN"]
[SourceTitle "playchess.com"]
[Source "ChessBase"]
[SourceQuality "1"]
[TimeControl "40/5400+30:1800+30"]

{[%evp 15,67,12,21,4,34,25,35,29,47,33,50,20,30,22,22,8,43,22,49,35,62,70,123,108,111,117,136,159,408,405,389,399,373,354,399,340,370,359,361,370,371,366,387,381,425,425,431,430,438,431,437,425,405,402]} 1. d4 {[%emt 0:00:03]} Nf6 {[%emt 0:00:48]} 2. c4 {[%emt 0:00:08]} e6 {[%emt 0:00:06]} 3. Nc3 {[%emt 0:00:17]} d5 {[%emt 0:00:14]} 4. cxd5 {[%emt 0:00:11]} exd5 {[%emt 0:00:15]} 5. Bg5 {[%emt 0:00:04][%cal Bc1g5,Bg5h4,Bh4g3][%mdl 32]} c6 {[%emt 0:00:21]} 6. e3 {[%emt 0:00:08]} h6 {[%emt 0:00:13]} 7. Bh4 {[%emt 0:00:05]} Be7 {[%emt 0:00:29]} 8. Bd3 {[%emt 0:00:10]} O-O {[%emt 0:00:24]} 9. Nge2 {[%emt 0:00:11]} Ne8 {[%emt 0:01:40]} 10. Bg3 {[%emt 0:00:13]} Nd6 {[%emt 0:00:23]} 11. Qc2 {[%emt 0:00:38] White is slightly better.} Re8 {[%emt 0:01:04]} 12. O-O {[%emt 0:01:03]} Bf8 {[%emt 0:01:54]} 13. Rae1 {[%emt 0:03:52]} a5 {[%emt 0:28:12]} 14. Nf4 {[%emt 0:07:24]} Na6 {[%emt 0:02:13]} 15. a3 {[%emt 0:00:44] Against Nb4} Nc7 {[%emt 0:05:13]} 16. f3 {[%emt 0:06:52]} Qf6 {[%emt 0:16:09]} 17. Qf2 {[%emt 0:10:00] Strongly threatening Bh4.} Ne6 {[%emt 0:04:51]} 18. Nxe6 $1 {[%emt 0:05:11]} Rxe6 {[%emt 0:14:38] [#]} (18... Bxe6 $14 19. Bh4 g5) 19. Bh4 $1 $16 {[%emt 0:25:31] White is more active.} g5 {[%emt 0:00:11]} 20. Bg3 {[%emt 0:00:01]} Bg7 {[%emt 0:06:05]} 21. f4 {[%emt 0:00:46]} gxf4 $2 {[%emt 0:06:53] Black cannot hold the game after this.} (21... Re8 $16 22. fxg5 Qxf2+ 23. Rxf2 Nc4) 22. Bh4 $18 {[%emt 0:02:12]} ({Not} 22. Bxf4 b5 $16) ({Stronger than} 22. Qxf4 Qxf4 23. Bxf4 b5 $11) 22... fxe3 {[%emt 0:01:12]} 23. Qxf6 {[%emt 0:00:03]} Bxf6 {[%emt 0:00:10]} 24. Rxf6 {[%emt 0:00:06]} b5 {[%emt 0:02:08]} 25. Rxe6 {[%emt 0:01:20]} Bxe6 {[%emt 0:00:08][%cal Bc8e6,Be6f5,Bf5e4][%mdl 32]} 26. Rxe3 {[%emt 0:00:12]} Nf5 {[%emt 0:00:32]} 27. Bxf5 {[%emt 0:01:07]} Bxf5 {[%emt 0:00:07]} 28. Be7 {[%emt 0:00:04]} Rb8 {[%emt 0:01:29]} 29. Kf2 {[%emt 0:02:25]} b4 {[%emt 0:00:06]} 30. axb4 {[%emt 0:00:04]} axb4 {[%emt 0:00:06]} 31. Ne2 {[%emt 0:00:11]} Be4 {[%emt 0:00:51]} 32. Rb3 {[%emt 0:00:52]} Re8 {[%emt 0:00:15]} 33. Bxb4 {[%emt 0:00:23]} Rb8 {[%emt 0:00:05]} 34. Rg3+ {[%emt 0:00:08] Weighted Error Value: White=0.09 (flawless) /Black=0.29 (precise) .  Loses game:     	---       	Black=1      Mistake:       	---       	Black=1      Inaccurate:     	White=1     	Black=4      OK:         	White=13    	Black=4      Best:        	White=1     	Black=2      Strong:       	White=2     	---} 1-0